Cogmind - Beta 14 @@@ ROGUE MODE // 2025.03.27 @ 15:17:06 Player: mournfully Result: Destroyed by G-47 Trooper with Particle Gun Performance ------------- Evolutions (2) 1000 Regions Visited (3) 600 Robots Destroyed (14) 70 Value Destroyed (368) 368 Prototype IDs (2) 40 Alien Tech Used (0) 0 Bonus (0) 0 TOTAL SCORE: 2078 Bonus ------- None Cogmind --------- Core Integrity 0/550 Matter 300/300 Energy 100/100 System Corruption 0% Temperature Cool (9) Movement Core (400) Ox7 Location -8/Materials Parts ------- > --- POWER (1) -------- (None) > --- PROPULSION (4) --- (None) > --- UTILITY (4) ------ Large Storage Unit Advanced Visual Processing Unit > --- WEAPON (2) ------- Makeshift Hammer > --- INVENTORY (15) --- Flight Unit Flight Unit Flight Unit High-capacity Storage Unit Transport Network Coupler Makeshift Light Armor Plating Scrap Shield Fragment (48) Scrap Shield Fragment (45) Peak State ------------ > --- POWER ------------ Makeshift Power Source > --- PROPULSION ------- Light Treads Light Treads Light Treads > --- UTILITY ---------- Large Storage Unit Structural Scanner Advanced Visual Processing Unit Seismic Detector > --- WEAPON ----------- Light Assault Rifle Light Assault Rifle > --- INVENTORY -------- Light Ion Engine Flight Unit Flight Unit Flight Unit High-capacity Storage Unit Transport Network Coupler Makeshift Light Armor Plating Beam Cannon Mining Laser Makeshift Hammer Scrap Shield Fragment Scrap Shield Fragment [Rating: 17] Favorites ----------- Power Light Ion Engine Engine Light Ion Engine Propulsion Light Treads Treads Light Treads Utility Seismic Detector Device Seismic Detector Storage Large Storage Unit Processor Signal Interpreter Protection Makeshift Light Armor Plating Weapon Light Assault Rifle Energy Cannon Beam Cannon Ballistic Gun Light Assault Rifle Special Weapon Mining Laser Impact Weapon Makeshift Hammer Build | -11 -10 -10 -8 ------- Run | Yrd Mat Sub Mat Slots Evolved 4 | . . . 4 Power . | . . . . Propulsion 2 | . . . 2 Utility 2 | . . . 2 Weapon . | . . . . Parts Attached 35 | 7 10 10 8 Power 5 | 1 2 1 1 Engine 5 | 1 2 1 1 Core . | . . . . Reactor . | . . . . Propulsion 3 | 2 . . 1 Treads 3 | 2 . . 1 Leg . | . . . . Wheel . | . . . . Hover . | . . . . Flight . | . . . . Utility 11 | 2 4 3 2 Device 4 | 1 . 2 1 Storage 4 | 1 3 . . Processor 2 | . 1 . 1 Hackware . | . . . . Protection 1 | . . 1 . Artifact . | . . . . Weapon 16 | 2 4 6 4 Energy Gun . | . . . . Energy Cannon 3 | . . 2 1 Ballistic Gun 7 | 2 2 2 1 Ballistic Cannon . | . . . . Launcher . | . . . . Special Weapon 4 | . 2 1 1 Impact Weapon 2 | . . 1 1 Slashing Weapon . | . . . . Piercing Weapon . | . . . . Special Melee Weapon . | . . . . Unidentified Prototypes . | . . . . Parts Lost 14 | . . 3 11 Power 2 | . . . 2 Propulsion 3 | . . . 3 Utility 3 | . . 1 2 Weapon 6 | . . 2 4 Highest Loss Streak 9 | . . 2 9 To Critical Strikes . | . . . . Average Slot Usage (%) 95 | . 100 96 65 Engine 13 | . 14 14 5 Treads 26 | . 28 28 16 Device 10 | . 12 6 11 Storage 13 | . 14 14 9 Processor 2 | . 1 3 7 Ballistic Gun 24 | . 26 23 12 Special Weapon 1 | . 1 . . Peak Build Rating 17 | 7 8 14 17 Average Rating 8 | 5 7 9 12 On Entrance 6 | . 7 8 11 Naked Turns . | . . . . Heaviest Build 31 | 12 29 31 28 Greatest Support 60 | 40 40 40 60 Greatest Overweight (x) 8 | . . . 8 Average Overweight (x) . | . . . 1 Largest Inventory Capacity 20 | 8 20 15 15 Average Capacity 12 | 7 11 15 15 Most Carried 15 | 2 13 15 14 Average Carried 9 | 1 7 14 11 Final Capacity 15 | 8 15 15 15 Final Carried 15 | 2 13 15 8 Class Distribution -------------------- 94% | Mutant 5% | Scavenger-Mutant Dominant Class ---------------- Mutant | -10/Materials Mutant | -10/Subcaves Scavenger-Mutant | -8/Materials Resources | -11 -10 -10 -8 ----------- Run | Yrd Mat Sub Mat Matter Collected 655 | 285 222 70 78 Remotely . | . . . . Salvage Created 548 | 72 237 46 193 Parts 30 | 5 16 1 8 Haulers Intercepted 1 | . 1 . . Recyclers Shooed . | . . . . Parts Field Recycled . | . . . . Retrieved Matter . | . . . . Parts Self-Destructed 13 | . . 13 . Prevented . | . . . . Kills | -11 -10 -10 -8 ------- Run | Yrd Mat Sub Mat Combat Hostiles Destroyed 8 | . 3 1 4 Guns 5 | . 3 . 2 Cannons 3 | . . 1 2 Classes Destroyed 11 | 2 6 . 3 Worker 1 | . 1 . . Builder 1 | . 1 . . Tunneler 1 | 1 . . . Hauler 1 | . 1 . . Recycler 1 | 1 . . . Watcher 1 | . 1 . . Grunt 3 | . 2 . 1 Brawler 1 | . . . 1 Sentry 1 | . . . 1 Hunter 1 | . . . 1 Subdweller 2 | . 1 1 . Best Kill Streak 3 | 2 3 1 2 Combat Bots Only 2 | . 1 1 2 Max Kills in Single Turn 1 | 1 1 1 1 Gunslinging . | . . . . Exploded . | . . . . Melee . | . . . . Uniques/NPCs Destroyed . | . . . . Combat | -11 -10 -10 -8 -------- Run | Yrd Mat Sub Mat Hostile Shots Fired 171 | . 28 27 116 Missed 42 | . 8 8 26 Damage Taken 2209 | . 315 510 1384 Core 772 | . 101 107 564 Absorbed by Shields . | . . . . Core Remaining (%) 58 | 100 . 16 . Volleys Fired 80 | 6 38 15 21 Largest 2 | 2 2 2 2 Hottest 120 | 40 120 100 60 Shots Fired 133 | 12 68 22 31 Gun 101 | 12 59 8 22 Cannon 17 | . . 8 9 Launcher . | . . . . Special 15 | . 9 6 . Kinetic 101 | 12 59 8 22 Thermal 32 | . 9 14 9 Explosive . | . . . . Electromagnetic . | . . . . Robot Hit Streak 20 | 4 15 20 11 Robot Miss Streak 2 | 2 2 1 1 Penetration Max . | . . . . Secondary Targets . | . . . . Shots Hit Robots 87 | 8 38 12 29 Core Hits 34 | 4 14 3 13 Critical Kills . | . . . . Critical Parts Destroyed 1 | . . . 1 Critical Strikes 1 | . . . 1 Destroy 1 | . . . 1 Melee Attacks 4 | . . 1 3 Impact 4 | . . 1 3 Slashing . | . . . . Piercing . | . . . . Sneak Attacks . | . . . . Combat Hostiles . | . . . . Follow-up Attacks . | . . . . Damage Inflicted 1027 | 86 423 157 361 Guns 718 | 86 422 51 159 Cannons 264 | . . 106 158 Explosions . | . . . . Melee 42 | . . . 42 Ramming 3 | . 1 . 2 Kinetic 718 | 86 422 51 159 Thermal 264 | . . 106 158 Explosive . | . . . . Electromagnetic . | . . . . Impact 42 | . . . 42 Slashing . | . . . . Piercing . | . . . . Highest Corruption . | . . . . Average Corruption . | . . . . Corruption Purged . | . . . . Corruption Blocked . | . . . . Overload Shots . | . . . . Overflow Damage . | . . . . Projectiles . | . . . . Explosions . | . . . . Melee . | . . . . Knockbacks . | . . . . Impact . | . . . . Kinetic . | . . . . Secondary . | . . . . Self-Inflicted Damage . | . . . . Shots . | . . . . Rammed 2 | . 1 . 1 Targets Rammed 2 | . 1 . 1 Kicked . | . . . . Crushed . | . . . . Highest Temperature 60 | . 60 9 43 Average Temperature 16 | . 17 9 15 Received Heat Transfer 714 | . 102 63 549 Siege Activations . | . . . . Robots Corrupted . | . . . . Combat Hostiles . | . . . . Parts Fried . | . . . . Impact Corruptions . | . . . . Robots Melted . | . . . . Combat Hostiles . | . . . . Parts Melted 2 | . 1 1 . Heat Transferred 555 | . . 222 333 Parts Sabotaged . | . . . . Parts Stolen . | . . . . Parts Stripped . | . . . . Power Chain Reactions . | . . . . Alert | -11 -10 -10 -8 ------- Run | Yrd Mat Sub Mat Peak Influence 139 | 10 139 . 85 Initial 6 | . 6 . . Average 32 | 3 37 . 16 Maximum Alert Level . | . . . . Low Security (%) 100 | 100 100 . 100 Level 1 . | . . . . Level 2 . | . . . . Level 3 . | . . . . Level 4 . | . . . . Level 5 . | . . . . High Security . | . . . . Max Security . | . . . . Squads Dispatched . | . . . . Investigation . | . . . . Extermination . | . . . . Reinforcement . | . . . . Assault . | . . . . Garrison . | . . . . Intercept . | . . . . Searches Triggered . | . . . . Construction Impeded . | . . . . Haulers Reinforced . | . . . . Active Scanning Responses . | . . . . Cargo Convoy Interrupts . | . . . . Stealth | -11 -10 -10 -8 --------- Run | Yrd Mat Sub Mat Distress Signals 3 | . 3 . . Communications Jammed . | . . . . Distress Signals . | . . . . Times Spotted 19 | . 9 3 7 Peak Tracking Total 7 | . 5 2 7 Tactical Retreats 4 | . 3 1 . Traps | -11 -10 -10 -8 ------- Run | Yrd Mat Sub Mat Traps Triggered 1 | . . 1 . Indirectly . | . . . . Trap Hack Attempts . | . . . . Triggered . | . . . . Disarmed . | . . . . Reprogrammed . | . . . . Reused . | . . . . Traps Extracted . | . . . . Installed . | . . . . Triggered . | . . . . Machines | -11 -10 -10 -8 ---------- Run | Yrd Mat Sub Mat Machines Disabled . | . . . . Max in Single Turn . | . . . . Machines Repaired . | . . . . Machines Dismantled . | . . . . Machines Sabotaged . | . . . . Overloaded Fab Kills . | . . . . Hacking | -11 -10 -10 -8 --------- Run | Yrd Mat Sub Mat Machines Accessed 4 | . 4 . . Terminals 4 | . 4 . . Fabricators . | . . . . Repair Stations . | . . . . Recycling Units . | . . . . Scanalyzers . | . . . . Garrison Access . | . . . . Total Hacks 16 | . 16 . . Successful 6 | . 6 . . Failed 10 | . 10 . . Catastrophic 1 | . 1 . . Database Lockouts . | . . . . Manual 13 | . 13 . . Terminals 16 | . 16 . . Fabricators . | . . . . Repair Stations . | . . . . Recycling Units . | . . . . Scanalyzers . | . . . . Garrison Access . | . . . . Terminal Hacks 4 | . 4 . . Prototype ID Bank 1 | . 1 . . Terminal Index 1 | . 1 . . Hauler Manifests 1 | . 1 . . Registered Components 1 | . 1 . . Fabricator Hacks . | . . . . Repair Station Hacks . | . . . . Recycling Unit Hacks . | . . . . Scanalyzer . | . . . . Garrison Access Hacks . | . . . . Unauthorized Hacks 2 | . 2 . . Terminals 2 | . 2 . . Botnet 2 | . 2 . . Fabricators . | . . . . Repair Stations . | . . . . Recycling Units . | . . . . Scanalyzers . | . . . . Garrison Access . | . . . . Data Cores Recovered . | . . . . Used . | . . . . Hacking Detections 4 | . 4 . . Full Trace Events . | . . . . Feedback Events . | . . . . Feedback Blocked . | . . . . Robot Schematics Acquired . | . . . . Robots Built . | . . . . Authchips . | . . . . Time . | . . . . Total Robot Build Rating . | . . . . Part Schematics Acquired . | . . . . Parts Built . | . . . . Authchips . | . . . . Time . | . . . . Total Part Build Rating . | . . . . Parts Repaired . | . . . . Time . | . . . . Parts Recycled . | . . . . Recycled Matter . | . . . . Retrieved Matter . | . . . . Retrieved Components . | . . . . Parts Scanalyzed . | . . . . Part Schematics Acquired . | . . . . Parts Damaged . | . . . . Bothacking | -11 -10 -10 -8 ------------ Run | Yrd Mat Sub Mat Used RIF Installer . | . . . . Robots Hacked . | . . . . Non-combat . | . . . . Combat . | . . . . Robot Hacks Applied . | . . . . Relay Couplers Released . | . . . . Fabnet Peak Effective % . | . . . . Robots Rewired . | . . . . Allies Hacked . | . . . . Hacks Repelled . | . . . . Allies | -11 -10 -10 -8 -------- Run | Yrd Mat Sub Mat Total Allies . | . . . . Largest Group . | . . . . Highest-Rated Group . | . . . . Highest-Rated Ally . | . . . . Total Orders . | . . . . Ally Attacks . | . . . . Total Damage . | . . . . Kills . | . . . . Allies Corrupted . | . . . . Allies Melted . | . . . . Intel | -11 -10 -10 -8 ------- Run | Yrd Mat Sub Mat Robot Analysis Total . | . . . . Derelict Logs Recovered . | . . . . Drone Launches . | . . . . Drone Recoveries . | . . . . Exploration | -11 -10 -10 -8 ------------- Run | Yrd Mat Sub Mat Turns Passed 2062 | 112 1237 515 198 Spaces Moved 935 | 54 568 252 61 Core 17 | 8 . . 9 Treads 918 | 46 568 252 52 Legs . | . . . . Wheels . | . . . . Hover . | . . . . Flight . | . . . . Fastest Speed 50 | 50 160 160 160 Average Speed 161 | 143 160 160 193 Slowest Speed 450 | 160 160 160 450 Overloaded Moves . | . . . . Propulsion Burnouts . | . . . . Robots Hopped . | . . . . Cave-ins Triggered . | . . . . Exploration Rate (%) 18 | 6 45 15 7 Regions Visited 3 Branch Regions 1 Pre-discovered Areas . | . . . . Known Exits Taken 2 | . 1 1 . Unknown Exits Taken 1 | 1 . . . Scrap Searched 1 | . . 1 . Spaces Dug 8 | . 7 1 . Terrain Destroyed 8 | . 7 1 . Melee 1 | . . 1 . Projectile 7 | . 7 . . AOE . | . . . . Terrain Rammed . | . . . . Walls Destroyed . | . . . . Machines Disabled . | . . . . Actions | -11 -10 -10 -8 --------- Run | Yrd Mat Sub Mat Total 1328 | 74 815 326 113 Wait 247 | 6 177 45 19 Move 932 | 53 567 251 61 Hop . | . . . . Pick Up 20 | 2 15 3 . Fast Attach 10 | 7 . 2 1 Attach 8 | . . 1 7 Detach . | . . . . Swap 17 | . 10 7 . Drop 8 | . 7 1 . Fire 80 | 6 38 15 21 Melee 4 | . . 1 3 Ram . | . . . . Kick . | . . . . Crush 2 | . 1 . 1 Escape Stasis . | . . . . Rewire . | . . . . Trap . | . . . . Miscellaneous . | . . . . Route ------- -11/Scrapyard -10/Materials (discovered 3 exits: *Mat / *Min / *Sub) -10/Subcaves -8/Materials History --------- Turn | Location | Event 5 | -11/Scrapyard | Discovered new exit (range 14) 113 | -11/Scrapyard | Entered Materials 304 | -10/Materials | Build established: Mutant 476 | -10/Materials | Discovered new exit (range 7) 813 | -10/Materials | Derelicts attacked the area 920 | -10/Materials | Discovered new exit (range 8) 1185 | -10/Materials | Discovered new exit (range 14) 1239 | -10/Materials | Identified exit to Materials 1321 | -10/Materials | Identified exit to Mines 1349 | -10/Materials | Identified exit to Subcaves 1350 | -10/Materials | Entered Subcaves 1368 | -10/Subcaves | Discovered new exit (range 8) 1376 | -10/Subcaves | Identified exit to Materials 1480 | -10/Subcaves | Ambushed by Subdweller buried in earth 1496 | -10/Subcaves | Core integrity fell below 50% 1703 | -10/Subcaves | Shifting Twisted Machinery released Mak. Power Source 1713 | -10/Subcaves | Shifting Twisted Machinery released Riot Gun 1758 | -10/Subcaves | Shifting Twisted Machinery released Sub. Power Source 1763 | -10/Subcaves | Shifting Twisted Machinery released Battle Rifle 1854 | -10/Subcaves | Core integrity fell below 20% 1865 | -10/Subcaves | Entered Materials 1865 | -8/Materials | Evolved 4 slots: Propulsion x2, Utility x2 2020 | -8/Materials | Core integrity fell below 50% 2032 | -8/Materials | Core integrity fell below 20% 2036 | -8/Materials | Lost 9 parts (2p3n2u2w) 2063 | -8/Materials | Destroyed by G-47 Trooper with Particle Gun Last Messages --------------- 02007_ Critical hit (Burn: +37). 02007_ K-01 Serf collects debris. 02010_ R-06 Scavenger collects Lgt. Treads. 02011_ K-01 Serf collects debris. 02015_ R-06 Scavenger collects Beam Rifle. 02016_ Penetrated by Slug. 02016_ Knocked back. 02022_ Penetrated by Slug. 02022_ Critical hit (Burn: +37). 02025_ Penetrated by Slug. 02026_ G-47 Trooper destroyed. 02031_ Penetrated by Slug. 02032_ B-36 Bruiser destroyed. 02033_ Acquired 49 matter. 02036_ H-55 Commando destroyed. 02037_ Acquired 19 matter. 02048_ Beam Cannon destroyed. 02050_ Acquired 10 matter. 02055_ Mining Laser destroyed. 02060_ K-01 Serf collects debris. Map ----- +----------------------------------------------------+ | | | | | | | | | | | | | | | | | | | | | | | | | | | | | | | | | ?????????????????????????????????????????????????? | | ?????????????????????????????????????????????????? | | ###############################??????????????????? | | ###############################??????????????????? | | # ##??????????????????? | | # ##??????????????????? | | # ####????????????????? | | #############+##### #####+#########????????????? | | ######### # #%=[a ######????????????? | | ???????## # #*%@ "" + ?????????? | | ???????## """ # %k%= """ ########??????????? | | ???????## """"" # #= """ *##????????????????? | | ???????## """"" + #g ##????????????????? | | ???????## """"" # # """"" ##????????????????? | | ???????## """ # # """"" ##????????????????? | | ???????## # # """"" ##????????????????? | | ???????############% # ##????????????????? | | ???????############ ###########????????????????? | | ?????????????????## ###########????????????????? | | ?????????????????## ##?????????????????????????? | | ?????????????????## ##?????????????????????????? | | ?????????????????# #?????????????????????????? | | ?????????????????? ??????????????????????????? | | ?????????????????? ??????????????????????????? | | ???????????????? # ] ??????????????????????????? | | ???????????????? #[ ##????????????????????????? | | ???????????????? ## ###????????????????????????? | | ???????????????? ## ###????????????????????????? | | ?????????????????## ???????????????????????????? | | ??????????????????? ???????????????????????????? | | ??????????????????? ???????????????????????????? | | ?????????????????????????????????????????????????? | | ?????????????????????????????????????????????????? | | ?????????????????????????????????????????????????? | +----------------------------------------------------+ Best States ------------- Heat Dissipation 31 Energy Generation 15 Energy Capacity 250 Matter Stores 300 Matter Capacity 300 Sight Range 20 Terrain Scan Density 10 Armor Coverage 100 Evasion (%) 50 Recoil Reduction 3 Item Schematics ----------------- None Robot Schematics ------------------ None Fabricated ------------ Nothing Alien Tech Used ----------------- None Achievements -------------- None Challenges ------------ None Game ------ Seed TargetReflectiveShredder Manual? 0 Play Time 00:26:03 Cumulative 67.5 hours Start 2025.03.27 @ 14:50:57 End 2025.03.27 @ 15:17:06 Sessions 1 Manual Loads 0 Difficulty Rogue Special Mode None Game No. 33 Rogue 32 Adventurer 1 Explorer 0 Win Type - Total 0 Types 0/0/0/0/0/0/0/0/0 Lore% 12 Gallery% 33 Achievement% 30 Wizard Run 0 Options --------- Layout 1 ASCII 0 Keyboard 0 Movement Mouse Keybinds 0 Fullscreen 2 Font 24/Smallcaps Map View 50x35 Zoom Use 53% Tactical HUD 1 Map Filters NONE Filters NONE Steam 1 RUN: b912a1ea-584d-465b-bcdc-73f1c4f7fff1